Workbook

Sheet Sayfa1
A1: Δt, s | B1: 30 | C1: Simulation Time | E1: X | F1: S | G1: kX1 | H1: kX2 | I1: kX3 | J1: kX4 | K1: kS1 | L1: kS2 | M1: kS3 | N1: kS4
A2: X(0), mg/L | B2: 100 | C2: in seconds | D2: in hours | E2: in mg/L | F2: in mg/L
A3: S(0), mg/L | B3: 500 | C3: 0 | D3: =C3/3600 -> 0 | E3: =B2 -> 100 | F3: =B3 -> 500 | G3: =dXdt(E3,F3)*$B$1 -> 0.1461006923 | H3: =dXdt(E3+0.5*G3,F3)*$B$1 -> 0.1462074194 | I3: =dXdt(E3+0.5*H3,F3)*$B$1 -> 0.1462074973 | J3: =dXdt(E3+I3,F3)*$B$1 -> 0.1463143025 | K3: =dSdt(F3,E3)*$B$1 -> -0.2084575454 | L3: =dSdt(F3+0.5*K3,E3)*$B$1 -> -0.2084558721 | M3: =dSdt(F3+0.5*L3,E3)*$B$1 -> -0.2084558721 | N3: =dSdt(F3+M3,E3)*$B$1 -> -0.2084541981
C4: =C3+B$1 -> 30 | D4: =C4/3600 -> 0.008333333333 | E4: =E3+(G3+2*H3+2*I3+J3)/6 -> 100.1462075 | F4: =F3+(K3+2*L3+2*M3+N3)/6 -> 499.7915441 | G4: =dXdt(E4,F4)*$B$1 -> 0.1463116207 | H4: =dXdt(E4+0.5*G4,F4)*$B$1 -> 0.1464184999 | I4: =dXdt(E4+0.5*H4,F4)*$B$1 -> 0.1464185779 | J4: =dXdt(E4+I4,F4)*$B$1 -> 0.1465255353 | K4: =dSdt(F4,E4)*$B$1 -> -0.2087589737 | L4: =dSdt(F4+0.5*K4,E4)*$B$1 -> -0.2087572941 | M4: =dSdt(F4+0.5*L4,E4)*$B$1 -> -0.2087572941 | N4: =dSdt(F4+M4,E4)*$B$1 -> -0.2087556139
C5: =C4+B$1 -> 60 | D5: =C5/3600 -> 0.01666666667 | E5: =E4+(G4+2*H4+2*I4+J4)/6 -> 100.292626 | F5: =F4+(K4+2*L4+2*M4+N4)/6 -> 499.5827868 | G5: 0.1465228435 | H5: 0.1466298751 | I5: 0.1466299532 | J5: 0.1467370631 | K5: -0.2090608246 | L5: -0.2090591388 | M5: -0.2090591389 | N5: -0.2090574524
C6: 90 | D6: 0.025 | E6: 100.439256 | F6: 499.3737277 | G6: 0.1467343613 | H6: 0.1468415453 | I6: 0.1468416236 | J6: 0.1469488861 | K6: -0.2093630988 | L6: -0.2093614067 | M6: -0.2093614067 | N6: -0.209359714
C7: 120 | D7: 0.03333333333 | E7: 100.5860975 | F7: 499.1643663 | G7: 0.1469461743 | H7: 0.1470535111 | I7: 0.1470535895 | J7: 0.1471610048 | K7: -0.2096657967 | L7: -0.2096640983 | M7: -0.2096640983 | N7: -0.2096623993
C8: 150 | D8: 0.04166666667 | E8: 100.7331511 | F8: 498.9547022 | G8: 0.1471582829 | H8: 0.1472657726 | I8: 0.1472658511 | J8: 0.1473734195 | K8: -0.2099689188 | L8: -0.2099672142 | M8: -0.2099672142 | N8: -0.2099655088
C9: 180 | D9: 0.05 | E9: 100.8804169 | F9: 498.744735 | G9: 0.1473706875 | H9: 0.1474783303 | I9: 0.147478409 | J9: 0.1475861306 | K9: -0.2102724658 | L9: -0.2102707548 | M9: -0.2102707548 | N9: -0.2102690431
C10: 210 | D10: 0.05833333333 | E10: 101.0278953 | F10: 498.5344642 | G10: 0.1475833884 | H10: 0.1476911847 | I10: 0.1476912634 | J10: 0.1477991385 | K10: -0.2105764381 | L10: -0.2105747207 | M10: -0.2105747208 | N10: -0.2105730027
C11: 240 | D11: 0.06666666667 | E11: 101.1755866 | F11: 498.3238895 | G11: 0.1477963861 | H11: 0.1479043359 | I11: 0.1479044147 | J11: 0.1480124435 | K11: -0.2108808363 | L11: -0.2108791126 | M11: -0.2108791126 | N11: -0.2108773881
C12: 270 | D12: 0.075 | E12: 101.3234909 | F12: 498.1130104 | G12: 0.1480096808 | H12: 0.1481177844 | I12: 0.1481178634 | J12: 0.148226046 | K12: -0.211185661 | L12: -0.2111839308 | M12: -0.2111839308 | N12: -0.2111821999
C13: 300 | D13: 0.08333333333 | E13: 101.4716088 | F13: 497.9018265 | G13: 0.1482232731 | H13: 0.1483315306 | I13: 0.1483316097 | J13: 0.1484399465 | K13: -0.2114909126 | L13: -0.211489176 | M13: -0.211489176 | N13: -0.2114874386
C14: 330 | D14: 0.09166666667 | E14: 101.6199404 | F14: 497.6903373 | G14: 0.1484371632 | H14: 0.1485455749 | I14: 0.1485456541 | J14: 0.1486541451 | K14: -0.2117965918 | L14: -0.2117948486 | M14: -0.2117948486 | N14: -0.2117931048
C15: 360 | D15: 0.1 | E15: 101.768486 | F15: 497.4785424 | G15: 0.1486513515 | H15: 0.1487599176 | I15: 0.1487599969 | J15: 0.1488686424 | K15: -0.212102699 | L15: -0.2121009493 | M15: -0.2121009493 | N15: -0.212099199
C16: 390 | D16: 0.1083333333 | E16: 101.917246 | F16: 497.2664415 | G16: 0.1488658383 | H16: 0.1489745591 | I16: 0.1489746385 | J16: 0.1490834387 | K16: -0.2124092348 | L16: -0.2124074786 | M16: -0.2124074786 | N16: -0.2124057217
C17: 420 | D17: 0.1166666667 | E17: 102.0662206 | F17: 497.054034 | G17: 0.1490806242 | H17: 0.1491894997 | I17: 0.1491895792 | J17: 0.1492985344 | K17: -0.2127161997 | L17: -0.212714437 | M17: -0.212714437 | N17: -0.2127126736
C18: 450 | D18: 0.125 | E18: 102.2154101 | F18: 496.8413196 | G18: 0.1492957093 | H18: 0.1494047399 | I18: 0.1494048195 | J18: 0.1495139298 | K18: -0.2130235943 | L18: -0.213021825 | M18: -0.213021825 | N18: -0.213020055
C19: 480 | D19: 0.1333333333 | E19: 102.3648149 | F19: 496.6282977 | G19: 0.1495110942 | H19: 0.14962028 | I19: 0.1496203597 | J19: 0.1497296254 | K19: -0.2133314192 | L19: -0.2133296433 | M19: -0.2133296433 | N19: -0.2133278666
C20: 510 | D20: 0.1416666667 | E20: 102.5144353 | F20: 496.4149681 | G20: 0.1497267792 | H20: 0.1498361204 | I20: 0.1498362002 | J20: 0.1499456214 | K20: -0.2136396748 | L20: -0.2136378923 | M20: -0.2136378923 | N20: -0.213636109
C21: 540 | D21: 0.15 | E21: 102.6642714 | F21: 496.2013302 | G21: 0.1499427646 | H21: 0.1500522614 | I21: 0.1500523414 | J21: 0.1501619183 | K21: -0.2139483618 | L21: -0.2139465726 | M21: -0.2139465726 | N21: -0.2139447826
C22: 570 | D22: 0.1583333333 | E22: 102.8143237 | F22: 495.9873836 | G22: 0.1501590508 | H22: 0.1502687035 | I22: 0.1502687836 | J22: 0.1503785165 | K22: -0.2142574806 | L22: -0.2142556847 | M22: -0.2142556847 | N22: -0.214253888
C23: 600 | D23: 0.1666666667 | E23: 102.9645925 | F23: 495.773128 | G23: 0.1503756382 | H23: 0.150485447 | I23: 0.1504855272 | J23: 0.1505954163 | K23: -0.2145670318 | L23: -0.2145652292 | M23: -0.2145652292 | N23: -0.2145634258
C24: 630 | D24: 0.175 | E24: 103.115078 | F24: 495.5585627 | G24: 0.1505925272 | H24: 0.1507024923 | I24: 0.1507025726 | J24: 0.150812618 | K24: -0.214877016 | L24: -0.2148752066 | M24: -0.2148752066 | N24: -0.2148733965
C25: 660 | D25: 0.1833333333 | E25: 103.2657805 | F25: 495.3436875 | G25: 0.1508097182 | H25: 0.1509198397 | I25: 0.1509199201 | J25: 0.1510301221 | K25: -0.2151874337 | L25: -0.2151856175 | M25: -0.2151856175 | N25: -0.2151838006
C26: 690 | D26: 0.1916666667 | E26: 103.4167004 | F26: 495.1285019 | G26: 0.1510272114 | H26: 0.1511374896 | I26: 0.1511375702 | J26: 0.151247929 | K26: -0.2154982854 | L26: -0.2154964624 | M26: -0.2154964624 | N26: -0.2154946387
C27: 720 | D27: 0.2 | E27: 103.567838 | F27: 494.9130054 | G27: 0.1512450074 | H27: 0.1513554425 | I27: 0.1513555231 | J27: 0.151466039 | K27: -0.2158095717 | L27: -0.2158077419 | M27: -0.2158077419 | N27: -0.2158059114
C28: 750 | D28: 0.2083333333 | E28: 103.7191935 | F28: 494.6971977 | G28: 0.1514631064 | H28: 0.1515736986 | I28: 0.1515737794 | J28: 0.1516844525 | K28: -0.2161212932 | L28: -0.2161194565 | M28: -0.2161194565 | N28: -0.2161176191
C29: 780 | D29: 0.2166666667 | E29: 103.8707672 | F29: 494.4810782 | G29: 0.1516815089 | H29: 0.1517922584 | I29: 0.1517923393 | J29: 0.1519031698 | K29: -0.2164334503 | L29: -0.2164316068 | M29: -0.2164316068 | N29: -0.2164297625
C30: 810 | D30: 0.225 | E30: 104.0225595 | F30: 494.2646466 | G30: 0.1519002152 | H30: 0.1520111223 | I30: 0.1520112033 | J30: 0.1521221914 | K30: -0.2167460437 | L30: -0.2167441932 | M30: -0.2167441933 | N30: -0.216742342
C31: 840 | D31: 0.2333333333 | E31: 104.1745707 | F31: 494.0479024 | G31: 0.1521192257 | H31: 0.1522302905 | I31: 0.1522303716 | J31: 0.1523415176 | K31: -0.2170590739 | L31: -0.2170572165 | M31: -0.2170572165 | N31: -0.2170553583
C32: 870 | D32: 0.2416666667 | E32: 104.3268011 | F32: 493.8308452 | G32: 0.1523385408 | H32: 0.1524497636 | I32: 0.1524498448 | J32: 0.1525611488 | K32: -0.2173725414 | L32: -0.217370677 | M32: -0.217370677 | N32: -0.2173688118
C33: 900 | D33: 0.25 | E33: 104.4792509 | F33: 493.6134745 | G33: 0.1525581608 | H33: 0.1526695417 | I33: 0.1526696231 | J33: 0.1527810854 | K33: -0.2176864468 | L33: -0.2176845754 | M33: -0.2176845754 | N33: -0.2176827032
C34: 930 | D34: 0.2583333333 | E34: 104.6319205 | F34: 493.39579 | G34: 0.1527780862 | H34: 0.1528896255 | I34: 0.1528897069 | J34: 0.1530013278 | K34: -0.2180007906 | L34: -0.2179989122 | M34: -0.2179989122 | N34: -0.217997033
C35: 960 | D35: 0.2666666667 | E35: 104.7848102 | F35: 493.1777911 | G35: 0.1529983172 | H35: 0.1531100151 | I35: 0.1531100967 | J35: 0.1532218762 | K35: -0.2183155734 | L35: -0.2183136879 | M35: -0.2183136879 | N35: -0.2183118016
C36: 990 | D36: 0.275 | E36: 104.9379202 | F36: 492.9594774 | G36: 0.1532188544 | H36: 0.1533307111 | I36: 0.1533307927 | J36: 0.1534427312 | K36: -0.2186307957 | L36: -0.2186289032 | M36: -0.2186289032 | N36: -0.2186270098
C37: 1020 | D37: 0.2833333333 | E37: 105.091251 | F37: 492.7408485 | G37: 0.153439698 | H37: 0.1535517137 | I37: 0.1535517955 | J37: 0.1536638931 | K37: -0.2189464582 | L37: -0.2189445585 | M37: -0.2189445585 | N37: -0.218942658
C38: 1050 | D38: 0.2916666667 | E38: 105.2448028 | F38: 492.5219039 | G38: 0.1536608484 | H38: 0.1537730234 | I38: 0.1537731053 | J38: 0.1538853622 | K38: -0.2192625612 | L38: -0.2192606544 | M38: -0.2192606544 | N38: -0.2192587467
C39: 1080 | D39: 0.3 | E39: 105.3985758 | F39: 492.3026433 | G39: 0.1538823061 | H39: 0.1539946405 | I39: 0.1539947225 | J39: 0.154107139 | K39: -0.2195791055 | L39: -0.2195771914 | M39: -0.2195771914 | N39: -0.2195752766
C40: 1110 | D40: 0.3083333333 | E40: 105.5525705 | F40: 492.0830661 | G40: 0.1541040714 | H40: 0.1542165654 | I40: 0.1542166475 | J40: 0.1543292237 | K40: -0.2198960914 | L40: -0.2198941702 | M40: -0.2198941702 | N40: -0.2198922482
C41: 1140 | D41: 0.3166666667 | E41: 105.7067872 | F41: 491.8631719 | G41: 0.1543261446 | H41: 0.1544387985 | I41: 0.1544388807 | J41: 0.1545516169 | K41: -0.2202135197 | L41: -0.2202115912 | M41: -0.2202115912 | N41: -0.2202096619
C42: 1170 | D42: 0.325 | E42: 105.861226 | F42: 491.6429603 | G42: 0.1545485262 | H42: 0.1546613401 | I42: 0.1546614225 | J42: 0.1547743189 | K42: -0.2205313908 | L42: -0.2205294551 | M42: -0.2205294551 | N42: -0.2205275185
C43: 1200 | D43: 0.3333333333 | E43: 106.0158874 | F43: 491.4224308 | G43: 0.1547712165 | H43: 0.1548841907 | I43: 0.1548842732 | J43: 0.15499733 | K43: -0.2208497054 | L43: -0.2208477623 | M43: -0.2208477623 | N43: -0.2208458184
C44: 1230 | D44: 0.3416666667 | E44: 106.1707716 | F44: 491.2015831 | G44: 0.1549942159 | H44: 0.1551073506 | I44: 0.1551074332 | J44: 0.1552206506 | K44: -0.2211684638 | L44: -0.2211665134 | M44: -0.2211665134 | N44: -0.2211645622
C45: 1260 | D45: 0.35 | E45: 106.3258791 | F45: 490.9804166 | G45: 0.1552175248 | H45: 0.1553308202 | I45: 0.1553309029 | J45: 0.1554442812 | K45: -0.2214876668 | L45: -0.221485709 | M45: -0.221485709 | N45: -0.2214837505
C46: 1290 | D46: 0.3583333333 | E46: 106.4812099 | F46: 490.7589309 | G46: 0.1554411435 | H46: 0.1555545999 | I46: 0.1555546827 | J46: 0.1556682221 | K46: -0.2218073148 | L46: -0.2218053497 | M46: -0.2218053497 | N46: -0.2218033837
C47: 1320 | D47: 0.3666666667 | E47: 106.6367646 | F47: 490.5371255 | G47: 0.1556650725 | H47: 0.1557786901 | I47: 0.155778773 | J47: 0.1558924736 | K47: -0.2221274085 | L47: -0.2221254359 | M47: -0.2221254359 | N47: -0.2221234625
C48: 1350 | D48: 0.375 | E48: 106.7925433 | F48: 490.3150001 | G48: 0.1558893122 | H48: 0.1560030911 | I48: 0.1560031741 | J48: 0.1561170362 | K48: -0.2224479483 | L48: -0.2224459682 | M48: -0.2224459683 | N48: -0.2224439874
C49: 1380 | D49: 0.3833333333 | E49: 106.9485465 | F49: 490.0925541 | G49: 0.1561138628 | H49: 0.1562278033 | I49: 0.1562278865 | J49: 0.1563419102 | K49: -0.2227689348 | L49: -0.2227669473 | M49: -0.2227669473 | N49: -0.2227649589
C50: 1410 | D50: 0.3916666667 | E50: 107.1047743 | F50: 489.8697872 | G50: 0.1563387248 | H50: 0.1564528271 | I50: 0.1564529104 | J50: 0.1565670961 | K50: -0.2230903686 | L50: -0.2230883736 | M50: -0.2230883736 | N50: -0.2230863777
C51: 1440 | D51: 0.4 | E51: 107.2612272 | F51: 489.6466988 | G51: 0.1565638986 | H51: 0.1566781629 | I51: 0.1566782463 | J51: 0.1567925941 | K51: -0.2234122503 | L51: -0.2234102477 | M51: -0.2234102477 | N51: -0.2234082442
C52: 1470 | D52: 0.4083333333 | E52: 107.4179054 | F52: 489.4232885 | G52: 0.1567893846 | H52: 0.1569038111 | I52: 0.1569038946 | J52: 0.1570184047 | K52: -0.2237345803 | L52: -0.2237325701 | M52: -0.2237325702 | N52: -0.2237305591
C53: 1500 | D53: 0.4166666667 | E53: 107.5748093 | F53: 489.199556 | G53: 0.157015183 | H53: 0.157129772 | I53: 0.1571298556 | J53: 0.1572445283 | K53: -0.2240573593 | L53: -0.2240553415 | M53: -0.2240553415 | N53: -0.2240533229
C54: 1530 | D54: 0.425 | E54: 107.7319391 | F54: 488.9755006 | G54: 0.1572412944 | H54: 0.157356046 | I54: 0.1573561298 | J54: 0.1574709652 | K54: -0.2243805878 | L54: -0.2243785624 | M54: -0.2243785624 | N54: -0.2243765361
C55: 1560 | D55: 0.4333333333 | E55: 107.8892952 | F55: 488.7511221 | G55: 0.1574677191 | H55: 0.1575826335 | I55: 0.1575827174 | J55: 0.1576977159 | K55: -0.2247042663 | L55: -0.2247022332 | M55: -0.2247022333 | N55: -0.2247001993
C56: 1590 | D56: 0.4416666667 | E56: 108.0468779 | F56: 488.5264198 | G56: 0.1576944574 | H56: 0.157809535 | I56: 0.1578096189 | J56: 0.1579247806 | K56: -0.2250283955 | L56: -0.2250263547 | M56: -0.2250263547 | N56: -0.225024313
C57: 1620 | D57: 0.45 | E57: 108.2046875 | F57: 488.3013935 | G57: 0.1579215098 | H57: 0.1580367507 | I57: 0.1580368348 | J57: 0.1581521598 | K57: -0.2253529759 | L57: -0.2253509273 | M57: -0.2253509273 | N57: -0.2253488779
C58: 1650 | D58: 0.4583333333 | E58: 108.3627243 | F58: 488.0760426 | G58: 0.1581488766 | H58: 0.158264281 | I58: 0.1582643652 | J58: 0.1583798539 | K58: -0.225678008 | L58: -0.2256759516 | M58: -0.2256759517 | N58: -0.2256738944
C59: 1680 | D59: 0.4666666667 | E59: 108.5209887 | F59: 487.8503666 | G59: 0.1583765583 | H59: 0.1584921264 | I59: 0.1584922107 | J59: 0.1586078633 | K59: -0.2260034924 | L59: -0.2260014282 | M59: -0.2260014282 | N59: -0.2259993632
C60: 1710 | D60: 0.475 | E60: 108.6794808 | F60: 487.6243652 | G60: 0.1586045551 | H60: 0.1587202872 | I60: 0.1587203716 | J60: 0.1588361883 | K60: -0.2263294296 | L60: -0.2263273576 | M60: -0.2263273576 | N60: -0.2263252848
C61: 1740 | D61: 0.4833333333 | E61: 108.8382012 | F61: 487.3980378 | G61: 0.1588328675 | H61: 0.1589487638 | I61: 0.1589488484 | J61: 0.1590648293 | K61: -0.2266558203 | L61: -0.2266537404 | M61: -0.2266537404 | N61: -0.2266516597
C62: 1770 | D62: 0.4916666667 | E62: 108.99715 | F62: 487.1713841 | G62: 0.1590614959 | H62: 0.1591775566 | I62: 0.1591776413 | J62: 0.1592937867 | K62: -0.2269826649 | L62: -0.2269805771 | M62: -0.2269805772 | N62: -0.2269784885
C63: 1800 | D63: 0.5 | E63: 109.1563276 | F63: 486.9444035 | G63: 0.1592904407 | H63: 0.1594066659 | I63: 0.1594067507 | J63: 0.1595230609 | K63: -0.2273099641 | L63: -0.2273078684 | M63: -0.2273078684 | N63: -0.2273057718
C64: 1830 | D64: 0.5083333333 | E64: 109.3157343 | F64: 486.7170956 | G64: 0.1595197021 | H64: 0.1596360922 | I64: 0.1596361771 | J64: 0.1597526523 | K64: -0.2276377183 | L64: -0.2276356147 | M64: -0.2276356147 | N64: -0.2276335101
C65: 1860 | D65: 0.5166666667 | E65: 109.4753705 | F65: 486.48946 | G65: 0.1597492807 | H65: 0.1598658358 | I65: 0.1598659209 | J65: 0.1599825612 | K65: -0.2279659283 | L65: -0.2279638166 | M65: -0.2279638166 | N65: -0.227961704
C66: 1890 | D66: 0.525 | E66: 109.6352364 | F66: 486.2614962 | G66: 0.1599791768 | H66: 0.1600958972 | I66: 0.1600959823 | J66: 0.160212788 | K66: -0.2282945944 | L66: -0.2282924747 | M66: -0.2282924747 | N66: -0.228290354
C67: 1920 | D67: 0.5333333333 | E67: 109.7953323 | F67: 486.0332037 | G67: 0.1602093907 | H67: 0.1603262766 | I67: 0.1603263619 | J67: 0.1604433332 | K67: -0.2286237173 | L67: -0.2286215895 | M67: -0.2286215895 | N67: -0.2286194608
C68: 1950 | D68: 0.5416666667 | E68: 109.9556587 | F68: 485.8045821 | G68: =dXdt(E68,F68)*$B$1 -> 0.160439923 | H68: =dXdt(E68+0.5*G68,F68)*$B$1 -> 0.1605569745 | I68: =dXdt(E68+0.5*H68,F68)*$B$1 -> 0.1605570599 | J68: =dXdt(E68+I68,F68)*$B$1 -> 0.1606741971 | K68: =dSdt(F68,E68)*$B$1 -> -0.2289532976 | L68: =dSdt(F68+0.5*K68,E68)*$B$1 -> -0.2289511617 | M68: =dSdt(F68+0.5*L68,E68)*$B$1 -> -0.2289511617 | N68: =dSdt(F68+M68,E68)*$B$1 -> -0.2289490248
C69: =C68+B$1 -> 1980 | D69: =C69/3600 -> 0.55 | E69: =E68+(G68+2*H68+2*I68+J68)/6 -> 110.1162157 | F69: =F68+(K68+2*L68+2*M68+N68)/6 -> 485.575631 | G69: 0.1606707738 | H69: 0.1607879913 | I69: 0.1607880769 | J69: 0.16090538 | K69: -0.2292833358 | L69: -0.2292811917 | M69: -0.2292811917 | N69: -0.2292790467
C70: 2010 | D70: 0.5583333333 | E70: 110.2770037 | F70: 485.3463498 | G70: 0.1609019437 | H70: 0.1610193274 | I70: 0.161019413 | J70: 0.1611368824 | K70: -0.2296138324 | L70: -0.2296116802 | M70: -0.2296116802 | N70: -0.229609527
C71: 2040 | D71: 0.5666666667 | E71: 110.4380231 | F71: 485.1167381 | G71: 0.1611334331 | H71: 0.1612509831 | I71: 0.1612510688 | J71: 0.1613687047 | K71: -0.2299447881 | L71: -0.2299426276 | M71: -0.2299426276 | N71: -0.2299404662
C72: 2070 | D72: 0.575 | E72: 110.5992742 | F72: 484.8867955 | G72: 0.1613652422 | H72: 0.1614829588 | I72: 0.1614830447 | J72: 0.1616008473 | K72: -0.2302762033 | L72: -0.2302740346 | M72: -0.2302740346 | N72: -0.230271865
C73: 2100 | D73: 0.5833333333 | E73: 110.7607572 | F73: 484.6565214 | G73: 0.1615973715 | H73: 0.1617152549 | I73: 0.1617153409 | J73: 0.1618333104 | K73: -0.2306080787 | L73: -0.2306059017 | M73: -0.2306059018 | N73: -0.2306037238
C74: 2130 | D74: 0.5916666667 | E74: 110.9224725 | F74: 484.4259155 | G74: 0.1618298214 | H74: 0.1619478718 | I74: 0.1619479579 | J74: 0.1620660946 | K74: -0.2309404148 | L74: -0.2309382296 | M74: -0.2309382296 | N74: -0.2309360433
C75: 2160 | D75: 0.6 | E75: 111.0844204 | F75: 484.1949773 | G75: 0.1620625922 | H75: 0.1621808099 | I75: 0.1621808961 | J75: 0.1622992001 | K75: -0.2312732123 | L75: -0.2312710186 | M75: -0.2312710186 | N75: -0.231268824
C76: 2190 | D76: 0.6083333333 | E76: 111.2466013 | F76: 483.9637063 | G76: 0.1622956844 | H76: 0.1624140695 | I76: 0.1624141559 | J76: 0.1625326275 | K76: -0.2316064715 | L76: -0.2316042695 | M76: -0.2316042695 | N76: -0.2316020665
C77: 2220 | D77: 0.6166666667 | E77: 111.4090154 | F77: 483.732102 | G77: 0.1625290983 | H77: 0.1626476511 | I77: 0.1626477376 | J77: 0.162766377 | K77: -0.2319401932 | L77: -0.2319379828 | M77: -0.2319379828 | N77: -0.2319357713
C78: 2250 | D78: 0.625 | E78: 111.5716631 | F78: 483.500164 | G78: 0.1627628343 | H78: 0.162881555 | I78: 0.1628816416 | J78: 0.1630004491 | K78: -0.2322743779 | L78: -0.232272159 | M78: -0.232272159 | N78: -0.2322699391
C79: 2280 | D79: 0.6333333333 | E79: 111.7345447 | F79: 483.2678919 | G79: 0.1629968928 | H79: 0.1631157817 | I79: 0.1631158684 | J79: 0.1632348441 | K79: -0.2326090261 | L79: -0.2326067987 | M79: -0.2326067987 | N79: -0.2326045703
C80: 2310 | D80: 0.6416666667 | E80: 111.8976606 | F80: 483.0352851 | G80: 0.1632312742 | H80: 0.1633503314 | I80: 0.1633504183 | J80: 0.1634695625 | K80: -0.2329441384 | L80: -0.2329419024 | M80: -0.2329419025 | N80: -0.2329396655
C81: 2340 | D81: 0.65 | E81: 112.061011 | F81: 482.8023432 | G81: 0.1634659789 | H81: 0.1635852047 | I81: 0.1635852916 | J81: 0.1637046045 | K81: -0.2332797154 | L81: -0.2332774709 | M81: -0.2332774709 | N81: -0.2332752253
C82: 2370 | D82: 0.6583333333 | E82: 112.2245962 | F82: 482.5690657 | G82: 0.1637010072 | H82: 0.1638204018 | I82: 0.1638204889 | J82: 0.1639399707 | K82: -0.2336157576 | L82: -0.2336135045 | M82: -0.2336135045 | N82: -0.2336112504
C83: 2400 | D83: 0.6666666667 | E83: 112.3884167 | F83: 482.3354522 | G83: 0.1639363596 | H83: 0.1640559232 | I83: 0.1640560104 | J83: 0.1641756613 | K83: -0.2339522656 | L83: -0.2339500039 | M83: -0.2339500039 | N83: -0.2339477411
C84: 2430 | D84: 0.675 | E84: 112.5524727 | F84: 482.1015022 | G84: 0.1641720364 | H84: 0.1642917692 | I84: 0.1642918566 | J84: 0.1644116769 | K84: -0.23428924 | L84: -0.2342869696 | M84: -0.2342869696 | N84: -0.2342846981
C85: 2460 | D85: 0.6833333333 | E85: 112.7167645 | F85: 481.8672152 | G85: 0.164408038 | H85: 0.1645279403 | I85: 0.1645280278 | J85: 0.1646480176 | K85: -0.2346266814 | L85: -0.2346244022 | M85: -0.2346244023 | N85: -0.2346221221
C86: 2490 | D86: 0.6916666667 | E86: 112.8812925 | F86: 481.6325908 | G86: 0.1646443648 | H86: 0.1647644368 | I86: 0.1647645244 | J86: 0.1648846841 | K86: -0.2349645903 | L86: -0.2349623024 | M86: -0.2349623024 | N86: -0.2349600134
C87: 2520 | D87: 0.7 | E87: 113.046057 | F87: 481.3976285 | G87: 0.1648810172 | H87: 0.1650012591 | I87: 0.1650013468 | J87: 0.1651216766 | K87: -0.2353029672 | L87: -0.2353006705 | M87: -0.2353006705 | N87: -0.2352983728
C88: 2550 | D88: 0.7083333333 | E88: 113.2110583 | F88: 481.1623279 | G88: 0.1651179956 | H88: 0.1652384077 | I88: 0.1652384955 | J88: 0.1653589955 | K88: -0.2356418128 | L88: -0.2356395073 | M88: -0.2356395073 | N88: -0.2356372007
C89: 2580 | D89: 0.7166666667 | E89: 113.3762968 | F89: 480.9266883 | G89: 0.1653553003 | H89: 0.1654758828 | I89: 0.1654759707 | J89: 0.1655966412 | K89: -0.2359811276 | L89: -0.2359788132 | M89: -0.2359788132 | N89: -0.2359764978
C90: 2610 | D90: 0.725 | E90: 113.5417727 | F90: 480.6907095 | G90: 0.1655929318 | H90: 0.1657136848 | I90: 0.1657137729 | J90: 0.1658346141 | K90: -0.2363209122 | L90: -0.2363185889 | M90: -0.2363185889 | N90: -0.2363162645
C91: 2640 | D91: 0.7333333333 | E91: 113.7074865 | F91: 480.4543909 | G91: 0.1658308905 | H91: 0.1659518143 | I91: 0.1659519025 | J91: 0.1660729146 | K91: -0.2366611672 | L91: -0.2366588349 | M91: -0.2366588349 | N91: -0.2366565016
C92: 2670 | D92: 0.7416666667 | E92: 113.8734383 | F92: 480.2177321 | G92: 0.1660691767 | H92: 0.1661902715 | I92: 0.1661903598 | J92: 0.1663115431 | K92: -0.237001893 | L92: -0.2369995518 | M92: -0.2369995518 | N92: -0.2369972095
C93: 2700 | D93: 0.75 | E93: 114.0396287 | F93: 479.9807326 | G93: 0.1663077907 | H93: 0.1664290568 | I93: 0.1664291453 | J93: 0.1665504999 | K93: -0.2373430904 | L93: -0.2373407401 | M93: -0.2373407401 | N93: -0.2373383888
C94: 2730 | D94: 0.7583333333 | E94: 114.2060578 | F94: 479.7433918 | G94: 0.1665467331 | H94: 0.1666681707 | I94: 0.1666682592 | J94: 0.1667897855 | K94: -0.2376847598 | L94: -0.2376824005 | M94: -0.2376824005 | N94: -0.2376800401
C95: 2760 | D95: 0.7666666667 | E95: 114.372726 | F95: 479.5057094 | G95: 0.1667860042 | H95: 0.1669076135 | I95: 0.1669077022 | J95: 0.1670294002 | K95: -0.2380269018 | L95: -0.2380245334 | M95: -0.2380245335 | N95: -0.2380221639
C96: 2790 | D96: 0.775 | E96: 114.5396337 | F96: 479.2676849 | G96: 0.1670256043 | H96: 0.1671473856 | I96: 0.1671474744 | J96: 0.1672693445 | K96: -0.2383695171 | L96: -0.2383671395 | M96: -0.2383671396 | N96: -0.2383647609
C97: 2820 | D97: 0.7833333333 | E97: 114.7067811 | F97: 479.0293177 | G97: 0.167265534 | H97: 0.1673874873 | I97: 0.1673875763 | J97: 0.1675096187 | K97: -0.2387126061 | L97: -0.2387102194 | M97: -0.2387102194 | N97: -0.2387078316
C98: 2850 | D98: 0.7916666667 | E98: 114.8741687 | F98: 478.7906075 | G98: 0.1675057934 | H98: 0.1676279192 | I98: 0.1676280083 | J98: 0.1677502232 | K98: -0.2390561695 | L98: -0.2390537735 | M98: -0.2390537736 | N98: -0.2390513765
C99: 2880 | D99: 0.8 | E99: 115.0417967 | F99: 478.5515538 | G99: 0.1677463832 | H99: 0.1678686815 | I99: 0.1678687707 | J99: 0.1679911584 | K99: -0.2394002077 | L99: -0.2393978026 | M99: -0.2393978026 | N99: -0.2393953963
C100: 2910 | D100: 0.8083333333 | E100: 115.2096654 | F100: 478.312156 | G100: 0.1679873035 | H100: 0.1681097747 | I100: 0.168109864 | J100: 0.1682324247 | K100: -0.2397447215 | L100: -0.239742307 | M100: -0.239742307 | N100: -0.2397398914
C101: 2940 | D101: 0.8166666667 | E101: 115.3777752 | F101: 478.0724136 | G101: 0.1682285549 | H101: 0.1683511992 | I101: 0.1683512886 | J101: 0.1684740224 | K101: -0.2400897113 | L101: -0.2400872875 | M101: -0.2400872875 | N101: -0.2400848626
C102: 2970 | D102: 0.825 | E102: 115.5461265 | F102: 477.8323264 | G102: 0.1684701377 | H102: 0.1685929553 | I102: 0.1685930448 | J102: 0.168715952 | K102: -0.2404351778 | L102: -0.2404327446 | M102: -0.2404327446 | N102: -0.2404303103
C103: 3000 | D103: 0.8333333333 | E103: 115.7147195 | F103: 477.5918936 | G103: 0.1687120523 | H103: 0.1688350434 | I103: 0.168835133 | J103: 0.1689582139 | K103: -0.2407811214 | L103: -0.2407786788 | M103: -0.2407786788 | N103: -0.2407762351
C104: 3030 | D104: 0.8416666667 | E104: 115.8835546 | F104: 477.3511149 | G104: 0.1689542991 | H104: 0.1690774639 | I104: 0.1690775537 | J104: 0.1692008084 | K104: -0.2411275428 | L104: -0.2411250908 | M104: -0.2411250908 | N104: -0.2411226376
C105: 3060 | D105: 0.85 | E105: 116.0526321 | F105: 477.1099898 | G105: 0.1691968784 | H105: 0.1693202172 | I105: 0.1693203071 | J105: 0.169443736 | K105: -0.2414744426 | L105: -0.241471981 | M105: -0.2414719811 | N105: -0.2414695183
C106: 3090 | D106: 0.8583333333 | E106: 116.2219524 | F106: 476.8685179 | G106: 0.1694397908 | H106: 0.1695633037 | I106: 0.1695633938 | J106: 0.1696869969 | K106: -0.2418218213 | L106: -0.2418193502 | M106: -0.2418193502 | N106: -0.2418168779
C107: 3120 | D107: 0.8666666667 | E107: 116.3915158 | F107: 476.6266985 | G107: 0.1696830364 | H107: 0.1698067239 | I107: 0.169806814 | J107: 0.1699305917 | K107: -0.2421696795 | L107: -0.2421671988 | M107: -0.2421671988 | N107: -0.2421647169
C108: 3150 | D108: 0.875 | E108: 116.5613226 | F108: 476.3845313 | G108: 0.1699266159 | H108: 0.170050478 | I108: 0.1700505682 | J108: 0.1701745207 | K108: -0.2425180177 | L108: -0.2425155274 | M108: -0.2425155274 | N108: -0.2425130359
C109: 3180 | D109: 0.8833333333 | E109: 116.7313731 | F109: 476.1420158 | G109: 0.1701705294 | H109: 0.1702945664 | I109: 0.1702946568 | J109: 0.1704187843 | K109: -0.2428668366 | L109: -0.2428643366 | M109: -0.2428643366 | N109: -0.2428618355
C110: 3210 | D110: 0.8916666667 | E110: 116.9016677 | F110: 475.8991515 | G110: 0.1704147775 | H110: 0.1705389896 | I110: 0.1705390802 | J110: 0.1706633829 | K110: -0.2432161367 | L110: -0.243213627 | M110: -0.243213627 | N110: -0.2432111161
C111: 3240 | D111: 0.9 | E111: 117.0722068 | F111: 475.6559378 | G111: 0.1706593606 | H111: 0.170783748 | I111: 0.1707838386 | J111: 0.1709083168 | K111: -0.2435659185 | L111: -0.2435633991 | M111: -0.2435633991 | N111: -0.2435608785
C112: 3270 | D112: 0.9083333333 | E112: 117.2429906 | F112: 475.4123744 | G112: 0.1709042789 | H112: 0.1710288419 | I112: 0.1710289327 | J112: 0.1711535866 | K112: -0.2439161828 | L112: -0.2439136535 | M112: -0.2439136536 | N112: -0.2439111231
C113: 3300 | D113: 0.9166666667 | E113: 117.4140195 | F113: 475.1684608 | G113: 0.1711495329 | H113: 0.1712742717 | I113: 0.1712743626 | J113: 0.1713991924 | K113: -0.2442669299 | L113: -0.2442643909 | M113: -0.2442643909 | N113: -0.2442618506
C114: 3330 | D114: 0.925 | E114: 117.5852938 | F114: 474.9241964 | G114: 0.171395123 | H114: 0.1715200378 | I114: 0.1715201289 | J114: 0.1716451348 | K114: -0.2446181606 | L114: -0.2446156117 | M114: -0.2446156117 | N114: -0.2446130615
C115: 3360 | D115: 0.9333333333 | E115: 117.7568139 | F115: 474.6795808 | G115: 0.1716410496 | H115: 0.1717661407 | I115: 0.1717662318 | J115: 0.1718914142 | K115: -0.2449698754 | L115: -0.2449673165 | M115: -0.2449673165 | N115: -0.2449647565
C116: 3390 | D116: 0.9416666667 | E116: 117.9285801 | F116: 474.4346135 | G116: 0.1718873131 | H116: 0.1720125806 | I116: 0.1720126719 | J116: 0.1721380309 | K116: -0.2453220748 | L116: -0.245319506 | M116: -0.245319506 | N116: -0.2453169359
C117: 3420 | D117: 0.95 | E117: 118.1005928 | F117: 474.1892939 | G117: 0.1721339138 | H117: 0.172259358 | I117: 0.1722594495 | J117: 0.1723849853 | K117: -0.2456747594 | L117: -0.2456721806 | M117: -0.2456721806 | N117: -0.2456696006
C118: 3450 | D118: 0.9583333333 | E118: 118.2728522 | F118: 473.9436218 | G118: 0.1723808521 | H118: 0.1725064734 | I118: 0.1725065649 | J118: 0.1726322778 | K118: -0.2460279299 | L118: -0.246025341 | M118: -0.2460253411 | N118: -0.2460227509
C119: 3480 | D119: 0.9666666667 | E119: 118.4453587 | F119: 473.6975964 | G119: 0.1726281285 | H119: 0.1727539269 | I119: 0.1727540186 | J119: 0.1728799088 | K119: -0.2463815867 | L119: -0.2463789878 | M119: -0.2463789878 | N119: -0.2463763876
C120: 3510 | D120: 0.975 | E120: 118.6181127 | F120: 473.4512174 | G120: 0.1728757434 | H120: 0.1730017192 | I120: 0.173001811 | J120: 0.1731278787 | K120: -0.2467357305 | L120: -0.2467331214 | M120: -0.2467331215 | N120: -0.2467305111
C121: 3540 | D121: 0.9833333333 | E121: 118.7911145 | F121: 473.2044843 | G121: 0.173123697 | H121: 0.1732498505 | I121: 0.1732499424 | J121: 0.1733761879 | K121: -0.2470903619 | L121: -0.2470877426 | M121: -0.2470877426 | N121: -0.2470851221
C122: 3570 | D122: 0.9916666667 | E122: 118.9643644 | F122: 472.9573966 | G122: 0.1733719899 | H122: 0.1734983212 | I122: 0.1734984133 | J122: 0.1736248368 | K122: -0.2474454813 | L122: -0.2474428518 | M122: -0.2474428519 | N122: -0.2474402211
C123: 3600 | D123: 1 | E123: 119.1378628 | F123: 472.7099537 | G123: 0.1736206224 | H123: 0.1737471318 | I123: 0.173747224 | J123: 0.1738738257 | K123: -0.2478010895 | L123: -0.2477984497 | M123: -0.2477984497 | N123: -0.2477958087
C124: 3630 | D124: 1.008333333 | E124: 119.31161 | F124: 472.4621553 | G124: 0.1738695949 | H124: 0.1739962826 | I124: 0.1739963749 | J124: 0.1741231551 | K124: -0.2481571869 | L124: -0.2481545368 | M124: -0.2481545368 | N124: -0.2481518854
C125: 3660 | D125: 1.016666667 | E125: 119.4856063 | F125: 472.2140007 | G125: 0.1741189077 | H125: 0.174245774 | I125: 0.1742458665 | J125: 0.1743728253 | K125: -0.2485137741 | L125: -0.2485111137 | M125: -0.2485111137 | N125: -0.248508452
C126: 3690 | D126: 1.025 | E126: 119.6598522 | F126: 471.9654896 | G126: 0.1743685614 | H126: 0.1744956065 | I126: 0.174495699 | J126: 0.1746228368 | K126: -0.2488708518 | L126: -0.248868181 | M126: -0.248868181 | N126: -0.2488655088
C127: 3720 | D127: 1.033333333 | E127: 119.8343478 | F127: 471.7166214 | G127: 0.1746185562 | H127: 0.1747457803 | I127: 0.174745873 | J127: 0.1748731899 | K127: -0.2492284205 | L127: -0.2492257392 | M127: -0.2492257392 | N127: -0.2492230566
C128: 3750 | D128: 1.041666667 | E128: 120.0090937 | F128: 471.4673957 | G128: 0.1748688925 | H128: 0.1749962959 | I128: 0.1749963887 | J128: 0.1751238851 | K128: -0.2495864807 | L128: -0.2495837889 | M128: -0.2495837889 | N128: -0.2495810958
C129: 3780 | D129: 1.05 | E129: 120.18409 | F129: 471.2178119 | G129: 0.1751195708 | H129: 0.1752471537 | I129: 0.1752472467 | J129: 0.1753749226 | K129: -0.2499450331 | L129: -0.2499423308 | M129: -0.2499423308 | N129: -0.2499396271
C130: 3810 | D130: 1.058333333 | E130: 120.3593372 | F130: 470.9678696 | G130: 0.1753705915 | H130: 0.1754983541 | I130: 0.1754984472 | J130: 0.175626303 | K130: -0.2503040782 | L130: -0.2503013653 | M130: -0.2503013653 | N130: -0.250298651
C131: 3840 | D131: 1.066666667 | E131: 120.5348357 | F131: 470.7175682 | G131: 0.1756219549 | H131: 0.1757498974 | I131: 0.1757499907 | J131: 0.1758780266 | K131: -0.2506636166 | L131: -0.2506608931 | M131: -0.2506608931 | N131: -0.2506581682
C132: 3870 | D132: 1.075 | E132: 120.7105856 | F132: 470.4669073 | G132: =dXdt(E132,F132)*$B$1 -> 0.1758736614 | H132: =dXdt(E132+0.5*G132,F132)*$B$1 -> 0.1760017842 | I132: =dXdt(E132+0.5*H132,F132)*$B$1 -> 0.1760018775 | J132: =dXdt(E132+I132,F132)*$B$1 -> 0.1761300937 | K132: =dSdt(F132,E132)*$B$1 -> -0.251023649 | L132: =dSdt(F132+0.5*K132,E132)*$B$1 -> -0.2510209147 | M132: =dSdt(F132+0.5*L132,E132)*$B$1 -> -0.2510209147 | N132: =dSdt(F132+M132,E132)*$B$1 -> -0.2510181791
C133: =C132+B$1 -> 3900 | D133: =C133/3600 -> 1.083333333 | E133: =E132+(G132+2*H132+2*I132+J132)/6 -> 120.8865875 | F133: =F132+(K132+2*L132+2*M132+N132)/6 -> 470.2158864 | G133: 0.1761257114 | H133: 0.1762540146 | I133: 0.1762541081 | J133: 0.1763825049 | K133: -0.2513841757 | L133: -0.2513814308 | M133: -0.2513814308 | N133: -0.2513786844
C134: 3930 | D134: 1.091666667 | E134: 121.0628415 | F134: 469.964505 | G134: 0.1763781054 | H134: 0.1765065892 | I134: 0.1765066828 | J134: 0.1766352604 | K134: -0.2517451975 | L134: -0.2517424418 | M134: -0.2517424418 | N134: -0.2517396847
C135: 3960 | D135: 1.1 | E135: 121.2393482 | F135: 469.7127625 | G135: 0.1766308436 | H135: 0.1767595083 | I135: 0.1767596021 | J135: 0.1768883607 | K135: -0.252106715 | L135: -0.2521039484 | M135: -0.2521039484 | N135: -0.2521011805
C136: 3990 | D136: 1.108333333 | E136: 121.4161078 | F136: 469.4606586 | G136: 0.1768839265 | H136: 0.1770127724 | I136: 0.1770128663 | J136: 0.1771418061 | K136: -0.2524687286 | L136: -0.2524659512 | M136: -0.2524659512 | N136: -0.2524631723
C137: 4020 | D137: 1.116666667 | E137: 121.5931206 | F137: 469.2081926 | G137: 0.1771373546 | H137: 0.1772663818 | I137: 0.1772664758 | J137: 0.1773955971 | K137: -0.252831239 | L137: -0.2528284507 | M137: -0.2528284507 | N137: -0.2528256609
C138: 4050 | D138: 1.125 | E138: 121.770387 | F138: 468.9553642 | G138: 0.1773911281 | H138: 0.1775203369 | I138: 0.177520431 | J138: 0.177649734 | K138: -0.2531942468 | L138: -0.2531914474 | M138: -0.2531914475 | N138: -0.2531886467
C139: 4080 | D139: 1.133333333 | E139: 121.9479074 | F139: 468.7021727 | G139: 0.1776452474 | H139: 0.177774638 | I139: 0.1777747323 | J139: 0.1779042173 | K139: -0.2535577525 | L139: -0.2535549421 | M139: -0.2535549422 | N139: -0.2535521304
C140: 4110 | D140: 1.141666667 | E140: 122.1256821 | F140: 468.4486178 | G140: 0.177899713 | H140: 0.1780292857 | I140: 0.1780293801 | J140: 0.1781590473 | K140: -0.2539217567 | L140: -0.2539189353 | M140: -0.2539189353 | N140: -0.2539161125
C141: 4140 | D141: 1.15 | E141: 122.3037115 | F141: 468.1946989 | G141: 0.1781545253 | H141: 0.1782842803 | I141: 0.1782843748 | J141: 0.1784142244 | K141: -0.25428626 | L141: -0.2542834275 | M141: -0.2542834275 | N141: -0.2542805935
C142: 4170 | D142: 1.158333333 | E142: 122.4819958 | F142: 467.9404154 | G142: 0.1784096846 | H142: 0.1785396221 | I142: 0.1785397168 | J142: 0.1786697491 | K142: -0.254651263 | L142: -0.2546484193 | M142: -0.2546484193 | N142: -0.2546455742
C143: 4200 | D143: 1.166666667 | E143: 122.6605355 | F143: 467.685767 | G143: 0.1786651913 | H143: 0.1787953116 | I143: 0.1787954064 | J143: 0.1789256216 | K143: -0.2550167662 | L143: -0.2550139113 | M143: -0.2550139113 | N143: -0.2550110549
C144: 4230 | D144: 1.175 | E144: 122.8393309 | F144: 467.4307531 | G144: 0.1789210459 | H144: 0.1790513492 | I144: 0.1790514441 | J144: 0.1791818424 | K144: -0.2553827702 | L144: -0.2553799041 | M144: -0.2553799041 | N144: -0.2553770365
C145: 4260 | D145: 1.183333333 | E145: 123.0183823 | F145: 467.1753732 | G145: 0.1791772487 | H145: 0.1793077352 | I145: 0.1793078302 | J145: 0.179438412 | K145: -0.2557492757 | L145: -0.2557463982 | M145: -0.2557463983 | N145: -0.2557435193
C146: 4290 | D146: 1.191666667 | E146: 123.1976901 | F146: 466.9196268 | G146: 0.1794338001 | H146: 0.1795644701 | I146: 0.1795645652 | J146: 0.1796953306 | K146: -0.2561162832 | L146: -0.2561133943 | M146: -0.2561133943 | N146: -0.256110504
C147: 4320 | D147: 1.2 | E147: 123.3772546 | F147: 466.6635134 | G147: 0.1796907005 | H147: 0.1798215542 | I147: 0.1798216495 | J147: 0.1799525986 | K147: -0.2564837932 | L147: -0.2564808929 | M147: -0.256480893 | N147: -0.2564779912
C148: 4350 | D148: 1.208333333 | E148: 123.5570763 | F148: 466.4070325 | G148: 0.1799479502 | H148: 0.1800789879 | I148: 0.1800790833 | J148: 0.1802102166 | K148: -0.2568518064 | L148: -0.2568488946 | M148: -0.2568488947 | N148: -0.2568459814
C149: 4380 | D149: 1.216666667 | E149: 123.7371553 | F149: 466.1501836 | G149: 0.1802055498 | H149: 0.1803367717 | I149: 0.1803368672 | J149: 0.1804681848 | K149: -0.2572203233 | L149: -0.2572174 | M149: -0.2572174 | N149: -0.2572144753
C150: 4410 | D150: 1.225 | E150: 123.9174921 | F150: 465.8929662 | G150: 0.1804634995 | H150: 0.1805949058 | I150: 0.1805950015 | J150: 0.1807265036 | K150: -0.2575893445 | L150: -0.2575864097 | M150: -0.2575864097 | N150: -0.2575834734
C151: 4440 | D151: 1.233333333 | E151: 124.0980871 | F151: 465.6353798 | G151: 0.1807217999 | H151: 0.1808533908 | I151: 0.1808534866 | J151: 0.1809851735 | K151: -0.2579588706 | L151: -0.2579559241 | M151: -0.2579559242 | N151: -0.2579529762
C152: 4470 | D152: 1.241666667 | E152: 124.2789406 | F152: 465.3774239 | G152: 0.1809804511 | H152: 0.181112227 | I152: 0.1811123229 | J152: 0.1812441948 | K152: -0.2583289021 | L152: -0.258325944 | M152: -0.2583259441 | N152: -0.2583229844
C153: 4500 | D153: 1.25 | E153: 124.4600529 | F153: 465.119098 | G153: 0.1812394537 | H153: 0.1813714147 | I153: 0.1813715108 | J153: 0.181503568 | K153: -0.2586994398 | L153: -0.2586964699 | M153: -0.25869647 | N153: -0.2586934986
C154: =C153+B$1 -> 4530 | D154: 1.258333333 | E154: =E153+(G153+2*H153+2*I153+J153)/6 -> 124.6414243 | F154: =F153+(K153+2*L153+2*M153+N153)/6 -> 464.8604015 | G154: 0.1814988081 | H154: 0.1816309544 | I154: 0.1816310507 | J154: 0.1817632934 | K154: -0.259070484 | L154: -0.2590675024 | M154: -0.2590675025 | N154: -0.2590645193
C155: 4560 | D155: 1.266666667 | E155: 124.8230554 | F155: 464.601334 | G155: 0.1817585146 | H155: 0.1818908466 | I155: 0.1818909429 | J155: 0.1820233713 | K155: -0.2594420355 | L155: -0.2594390421 | M155: -0.2594390421 | N155: -0.2594360471
C156: 4590 | D156: 1.275 | E156: 125.0049463 | F156: 464.3418949 | G156: 0.1820185736 | H156: 0.1821510914 | I156: 0.1821511879 | J156: 0.1822838023 | K156: -0.2598140947 | L156: -0.2598110894 | M156: -0.2598110895 | N156: -0.2598080826
C157: 4620 | D157: 1.283333333 | E157: 125.1870974 | F157: 464.0820838 | G157: 0.1822789856 | H157: 0.1824116894 | I157: 0.1824117861 | J157: 0.1825445867 | K157: -0.2601866624 | L157: -0.2601836451 | M157: -0.2601836452 | N157: -0.2601806263
C158: 4650 | D158: 1.291666667 | E158: 125.3695092 | F158: 463.8219002 | G158: 0.1825397508 | H158: 0.182672641 | I158: 0.1826727378 | J158: 0.1828057249 | K158: -0.2605597389 | L158: -0.2605567097 | M158: -0.2605567098 | N158: -0.2605536789
C159: 4680 | D159: 1.3 | E159: 125.5521819 | F159: 463.5613435 | G159: 0.1828008698 | H159: 0.1829339465 | I159: 0.1829340434 | J159: 0.1830672172 | K159: -0.260933325 | L159: -0.2609302838 | M159: -0.2609302838 | N159: -0.260927241
C160: 4710 | D160: 1.308333333 | E160: 125.7351159 | F160: 463.3004132 | G160: 0.1830623428 | H160: 0.1831956064 | I160: 0.1831957034 | J160: 0.1833290641 | K160: -0.2613074213 | L160: -0.2613043679 | M160: -0.261304368 | N160: -0.261301313
C161: 4740 | D161: 1.316666667 | E161: 125.9183116 | F161: 463.0391088 | G161: 0.1833241703 | H161: 0.1834576209 | I161: 0.1834577181 | J161: 0.183591266 | K161: -0.2616820282 | L161: -0.2616789627 | M161: -0.2616789627 | N161: -0.2616758956
C162: 4770 | D162: 1.325 | E162: 126.1017692 | F162: 462.7774299 | G162: 0.1835863527 | H162: 0.1837199906 | I162: 0.1837200879 | J162: 0.1838538232 | K162: -0.2620571464 | L162: -0.2620540687 | M162: -0.2620540687 | N162: -0.2620509894
C163: 4800 | D163: 1.333333333 | E163: 126.2854893 | F163: 462.5153758 | G163: 0.1838488904 | H163: 0.1839827158 | I163: 0.1839828132 | J163: 0.1841167362 | K163: -0.2624327764 | L163: -0.2624296865 | M163: -0.2624296865 | N163: -0.2624265949
C164: 4830 | D164: 1.341666667 | E164: 126.4694721 | F164: 462.2529461 | G164: 0.1841117837 | H164: 0.1842457969 | I164: 0.1842458944 | J164: 0.1843800053 | K164: -0.2628089189 | L164: -0.2628058167 | M164: -0.2628058167 | N164: -0.2628027128
C165: 4860 | D165: 1.35 | E165: 126.6537179 | F165: 461.9901403 | G165: 0.1843750331 | H165: 0.1845092342 | I165: 0.1845093319 | J165: 0.1846436309 | K165: -0.2631855745 | L165: -0.2631824598 | M165: -0.2631824599 | N165: -0.2631793436
C166: 4890 | D166: 1.358333333 | E166: 126.8382272 | F166: 461.7269578 | G166: 0.1846386389 | H166: 0.1847730283 | I166: 0.1847731261 | J166: 0.1849076134 | K166: -0.2635627436 | L166: -0.2635596165 | M166: -0.2635596165 | N166: -0.2635564878
C167: 4920 | D167: 1.366666667 | E167: 127.0230003 | F167: 461.4633982 | G167: 0.1849026015 | H167: 0.1850371794 | I167: 0.1850372773 | J167: 0.1851719533 | K167: -0.2639404269 | L167: -0.2639372873 | M167: -0.2639372874 | N167: -0.2639341461
C168: 4950 | D168: 1.375 | E168: 127.2080376 | F168: 461.1994609 | G168: 0.1851669214 | H168: 0.185301688 | I168: 0.185301786 | J168: 0.1854366509 | K168: -0.2643186249 | L168: -0.2643154728 | M168: -0.2643154729 | N168: -0.2643123191
C169: 4980 | D169: 1.383333333 | E169: 127.3933393 | F169: 460.9351455 | G169: 0.1854315988 | H169: 0.1855665544 | I169: 0.1855666526 | J169: 0.1857017065 | K169: -0.2646973383 | L169: -0.2646941736 | M169: -0.2646941737 | N169: -0.2646910073
C170: 5010 | D170: 1.391666667 | E170: 127.578906 | F170: 460.6704513 | G170: 0.1856966343 | H170: 0.1858317791 | I170: 0.1858318774 | J170: 0.1859671207 | K170: -0.2650765676 | L170: -0.2650733903 | M170: -0.2650733903 | N170: -0.2650702113
C171: 5040 | D171: 1.4 | E171: 127.7647378 | F171: 460.4053779 | G171: 0.1859620282 | H171: 0.1860973624 | I171: 0.1860974609 | J171: 0.1862328937 | K171: -0.2654563134 | L171: -0.2654531234 | M171: -0.2654531235 | N171: -0.2654499317
C172: 5070 | D172: 1.408333333 | E172: 127.9508352 | F172: 460.1399248 | G172: 0.1862277808 | H172: 0.1863633047 | I172: 0.1863634033 | J172: 0.186499026 | K172: -0.2658365763 | L172: -0.2658333736 | M172: -0.2658333736 | N172: -0.2658301691
C173: 5100 | D173: 1.416666667 | E173: 128.1371986 | F173: 459.8740914 | G173: 0.1864938927 | H173: 0.1866296064 | I173: 0.1866297052 | J173: 0.1867655179 | K173: -0.2662173569 | L173: -0.2662141413 | M173: -0.2662141414 | N173: -0.266210924
C174: 5130 | D174: 1.425 | E174: 128.3238283 | F174: 459.6078773 | G174: 0.186760364 | H174: 0.186896268 | I174: 0.1868963669 | J174: 0.1870323699 | K174: -0.2665986557 | L174: -0.2665954273 | M174: -0.2665954273 | N174: -0.2665921971
C175: 5160 | D175: 1.433333333 | E175: 128.5107246 | F175: 459.3412818 | G175: 0.1870271954 | H175: 0.1871632898 | I175: 0.1871633888 | J175: 0.1872995823 | K175: -0.2669804734 | L175: -0.266977232 | M175: -0.266977232 | N175: -0.2669739888
C176: 5190 | D176: 1.441666667 | E176: 128.697888 | F176: 459.0743046 | G176: 0.1872943871 | H176: 0.1874306721 | I176: 0.1874307713 | J176: 0.1875671556 | K176: -0.2673628104 | L176: -0.267359556 | M176: -0.2673595561 | N176: -0.2673562999
C177: 5220 | D177: 1.45 | E177: 128.8853187 | F177: 458.8069451 | G177: 0.1875619395 | H177: 0.1876984154 | I177: 0.1876985147 | J177: 0.1878350901 | K177: -0.2677456675 | L177: -0.2677424 | M177: -0.2677424001 | N177: -0.2677391308
C178: 5250 | D178: 1.458333333 | E178: 129.0730172 | F178: 458.5392027 | G178: 0.1878298531 | H178: 0.1879665201 | I178: 0.1879666195 | J178: 0.1881033862 | K178: -0.2681290451 | L178: -0.2681257645 | M178: -0.2681257646 | N178: -0.2681224822
C179: 5280 | D179: 1.466666667 | E179: 129.2609838 | F179: 458.2710769 | G179: 0.1880981281 | H179: 0.1882349865 | I179: 0.1882350861 | J179: 0.1883720443 | K179: -0.2685129439 | L179: -0.2685096501 | M179: -0.2685096501 | N179: -0.2685063546
C180: 5310 | D180: 1.475 | E180: 129.4492188 | F180: 458.0025672 | G180: 0.1883667651 | H180: 0.1885038151 | I180: 0.1885039148 | J180: 0.1886410647 | K180: -0.2688973644 | L180: -0.2688940574 | M180: -0.2688940574 | N180: -0.2688907486
C181: 5340 | D181: 1.483333333 | E181: 129.6377227 | F181: 457.7336732 | G181: 0.1886357644 | H181: 0.1887730063 | I181: 0.1887731061 | J181: 0.188910448 | K181: -0.2692823072 | L181: -0.2692789869 | M181: -0.2692789869 | N181: -0.2692756648
C182: 5370 | D182: 1.491666667 | E182: 129.8264958 | F182: 457.4643942 | G182: 0.1889051263 | H182: 0.1890425603 | I182: 0.1890426603 | J182: 0.1891801944 | K182: -0.2696677729 | L182: -0.2696644392 | M182: -0.2696644393 | N182: -0.2696611038
C183: 5400 | D183: 1.5 | E183: 130.0155384 | F183: 457.1947298 | G183: 0.1891748514 | H183: 0.1893124777 | I183: 0.1893125778 | J183: 0.1894503044 | K183: -0.270053762 | L183: -0.270050415 | M183: -0.270050415 | N183: -0.2700470661
C184: 5430 | D184: 1.508333333 | E184: 130.2048509 | F184: 456.9246793 | G184: 0.1894449399 | H184: 0.1895827588 | I184: 0.189582859 | J184: 0.1897207784 | K184: -0.2704402753 | L184: -0.2704369147 | M184: -0.2704369148 | N184: -0.2704335524
C185: 5460 | D185: 1.516666667 | E185: 130.3944338 | F185: 456.6542424 | G185: 0.1897153922 | H185: 0.189853404 | I185: 0.1898535044 | J185: 0.1899916167 | K185: -0.2708273131 | L185: -0.2708239391 | M185: -0.2708239391 | N185: -0.2708205632
C186: 5490 | D186: 1.525 | E186: 130.5842872 | F186: 456.3834185 | G186: 0.1899862088 | H186: 0.1901244136 | I186: 0.1901245142 | J186: 0.1902628197 | K186: -0.2712148762 | L186: -0.2712114885 | M186: -0.2712114886 | N186: -0.271208099
C187: 5520 | D187: 1.533333333 | E187: 130.7744117 | F187: 456.112207 | G187: 0.19025739 | H187: 0.1903957882 | I187: 0.1903958888 | J187: 0.1905343878 | K187: -0.2716029651 | L187: -0.2715995637 | M187: -0.2715995638 | N187: -0.2715961606
C188: 5550 | D188: 1.541666667 | E188: 130.9648076 | F188: 455.8406074 | G188: 0.1905289362 | H188: 0.190667528 | I188: 0.1906676288 | J188: 0.1908063214 | K188: -0.2719915803 | L188: -0.2719881653 | M188: -0.2719881653 | N188: -0.2719847484
C189: 5580 | D189: 1.55 | E189: 131.1554752 | F189: 455.5686193 | G189: 0.1908008479 | H189: 0.1909396334 | I189: 0.1909397344 | J189: 0.191078621 | K189: -0.2723807225 | L189: -0.2723772937 | M189: -0.2723772937 | N189: -0.272373863
C190: 5610 | D190: 1.558333333 | E190: 131.3464149 | F190: 455.296242 | G190: 0.1910731253 | H190: 0.1912121049 | I190: 0.191212206 | J190: 0.1913512868 | K190: -0.2727703922 | L190: -0.2727669496 | M190: -0.2727669496 | N190: -0.272763505
C191: 5640 | D191: 1.566666667 | E191: 131.537627 | F191: 455.023475 | G191: 0.1913457689 | H191: 0.1914849428 | I191: 0.191485044 | J191: 0.1916243193 | K191: -0.2731605901 | L191: -0.2731571335 | M191: -0.2731571335 | N191: -0.273153675
C192: 5670 | D192: 1.575 | E192: 131.7291121 | F192: 454.7503179 | G192: 0.1916187791 | H192: 0.1917581476 | I192: 0.1917582489 | J192: 0.1918977189 | K192: -0.2735513166 | L192: -0.2735478461 | M192: -0.2735478461 | N192: -0.2735443736
C193: 5700 | D193: 1.583333333 | E193: 131.9208703 | F193: 454.4767701 | G193: 0.1918921563 | H193: 0.1920317195 | I193: 0.192031821 | J193: 0.1921714859 | K193: -0.2739425724 | L193: -0.2739390878 | M193: -0.2739390879 | N193: -0.2739356013
C194: 5730 | D194: 1.591666667 | E194: 132.1129021 | F194: 454.202831 | G194: 0.1921659008 | H194: 0.192305659 | I194: 0.1923057607 | J194: 0.1924456207 | K194: -0.2743343581 | L194: -0.2743308594 | M194: -0.2743308594 | N194: -0.2743273587
C195: 5760 | D195: 1.6 | E195: 132.3052078 | F195: 453.9285001 | G195: 0.192440013 | H195: 0.1925799665 | I195: 0.1925800683 | J195: 0.1927201238 | K195: -0.2747266742 | L195: -0.2747231613 | M195: -0.2747231614 | N195: -0.2747196465
C196: 5790 | D196: 1.608333333 | E196: 132.4977878 | F196: 453.6537769 | G196: =dXdt(E196,F196)*$B$1 -> 0.1927144934 | H196: =dXdt(E196+0.5*G196,F196)*$B$1 -> 0.1928546424 | I196: =dXdt(E196+0.5*H196,F196)*$B$1 -> 0.1928547443 | J196: =dXdt(E196+I196,F196)*$B$1 -> 0.1929949955 | K196: =dSdt(F196,E196)*$B$1 -> -0.2751195213 | L196: =dSdt(F196+0.5*K196,E196)*$B$1 -> -0.2751159942 | M196: =dSdt(F196+0.5*L196,E196)*$B$1 -> -0.2751159942 | N196: =dSdt(F196+M196,E196)*$B$1 -> -0.2751124651
C197: 5820 | D197: =C197/3600 -> 1.616666667 | E197: 132.6906425 | F197: 453.378661 | G197: 0.1929893423 | H197: 0.1931296871 | I197: 0.1931297891 | J197: 0.1932702361 | K197: -0.2755129 | L197: -0.2755093586 | M197: -0.2755093586 | N197: -0.2755058152
C198: 5850 | D198: 1.625 | E198: 132.8837723 | F198: 453.1031516 | G198: 0.19326456 | H198: 0.1934051008 | I198: 0.193405203 | J198: 0.1935458462 | K198: -0.2759068108 | L198: -0.2759032551 | M198: -0.2759032551 | N198: -0.2758996973
C199: 5880 | D199: 1.633333333 | E199: 133.0771775 | F199: 452.8272483 | G199: 0.1935401471 | H199: 0.1936808841 | I199: 0.1936809865 | J199: 0.1938218261 | K199: -0.2763012545 | L199: -0.2762976843 | M199: -0.2762976843 | N199: -0.2762941121
C200: 5910 | D200: 1.641666667 | E200: 133.2708584 | F200: 452.5509507 | G200: 0.1938161038 | H200: 0.1939570374 | I200: 0.1939571398 | J200: 0.1940981761 | K200: -0.2766962314 | L200: -0.2766926467 | M200: -0.2766926467 | N200: -0.27668906
... 2684 more rows
